fUSD/lending_fUSD_20251024
["ID","MTS","AMOUNT","RATE_DAILY","PERIOD"]
[392261548,1761288640102,-498.2243552,0.00039941,120]
[392261549,1761288640112,-995.70389879,0.0004085,2]
[392261550,1761288640122,-150.0,0.00040859,7]
[392261551,1761288640131,-1425.0,0.00040861,2]
[392261552,1761288640140,-1425.0,0.00040864,2]
[392261553,1761288640150,-1425.0,0.00040864,2]
[392261554,1761288640160,-847.486,0.00040864,2]
[392261555,1761288640170,-2500.0,0.00040864,2]
[392261556,1761288640179,-1425.0,0.00040876,2]
[392261557,1761288640189,-1000.0,0.00040881,7]
[392261558,1761288640203,-1000.0,0.00040882,7]
[392261559,1761288640215,-1425.0,0.00040883,2]
[392261560,1761288640226,-9961.3857,0.00040885,2]
[392261561,1761288640239,-1425.0,0.00040893,2]
[392261562,1761288640248,-3193.7229,0.00040895,2]
[392261563,1761288640259,-836.04,0.00040904,2]
[392261564,1761288640268,-168.47,0.00040904,2]
[392261565,1761288640279,-1000.0,0.00040906,7]
[392261566,1761288640288,-1425.0,0.00040908,2]
[392261567,1761288640298,-1000.0,0.00040908,7]
[392261568,1761288640307,-1425.0,0.0004091,2]
[392261570,1761288640316,-1425.0,0.00040918,2]
[392261572,1761288640325,-1425.0,0.00040919,2]
[392261574,1761288640334,-1000.0,0.00040923,7]
[392261576,1761288640344,-1425.0,0.00040924,2]
[392261578,1761288640353,-1425.0,0.00040932,2]
[392261580,1761288640368,-150.0,0.00040933,7]
[392261582,1761288640379,-150.0,0.00040934,7]
[392261584,1761288640392,-1425.0,0.0004094,2]
[392261586,1761288640401,-1425.0,0.0004094,2]
[392261588,1761288640410,-1000.0,0.00040944,7]
[392261589,1761288640419,-1425.0,0.0004095,2]
[392261590,1761288640429,-1000.0,0.00040953,7]
[392261591,1761288640439,-150.0,0.00040955,7]
[392261592,1761288640449,-312.2573928,0.00040956,2]
[392261593,1761288640459,-1000.0,0.00040958,7]
[392261594,1761288640471,-1425.0,0.00040964,2]
[392261595,1761288640481,-1425.0,0.00040965,2]
[392261596,1761288640490,-4871.85016955,0.00040977,15]
[392261597,1761288640499,-1425.0,0.00040977,2]
[392261598,1761288640509,-150.0,0.00040977,7]
[392261599,1761288640518,-1425.0,0.00040981,2]
[392261600,1761288640527,-500.0,0.00040984,7]
[392261601,1761288640536,-305.0,0.00040984,30]
[392261602,1761288640545,-812.65183744,0.00040985,16]
[392261603,1761288640554,-108395.139355,0.00040985,3]
[392261604,1761288640563,-742.58509865,0.00040986,2]
[392261605,1761288640572,-1425.0,0.00040986,2]
[392261606,1761288640581,-1425.0,0.00040986,2]
[392261607,1761288640591,-1425.0,0.00040989,2]
[392261608,1761288640600,-15485.0199078,0.0004099,3]
[392261609,1761288640609,-1425.0,0.00040991,2]
[392261610,1761288640618,-500.0,0.00040994,30]
[392261611,1761288640627,-1003.1076,0.00040994,2]
[392261612,1761288640637,-500.0,0.00040994,7]
[392261613,1761288640646,-500.0,0.00040994,2]
[392261614,1761288640655,-500.0,0.00040994,2]
[392261615,1761288640664,-1425.0,0.00040995,2]
[392261616,1761288640673,-151.0,0.00040995,120]
[392261617,1761288640682,-151.0,0.00040995,120]
[392261618,1761288640691,-151.0,0.00040995,120]
[392261619,1761288640700,-151.0,0.00040995,120]
[392261620,1761288640709,-151.0,0.00040995,120]
[392261621,1761288640718,-151.0,0.00040995,120]
[392261622,1761288640727,-151.0,0.00040995,120]
[392261623,1761288640736,-151.0,0.00040995,120]
[392261624,1761288640745,-151.0,0.00040995,30]
[392261625,1761288640754,-151.0,0.00040995,120]
[392261626,1761288640763,-151.0,0.00040995,120]
[392261627,1761288640772,-151.0,0.00040995,120]
[392261628,1761288640781,-151.0,0.00040995,120]
[392261629,1761288640790,-151.0,0.00040995,30]
[392261631,1761288640799,-276.344647,0.00040995,120]
[392261632,1761288640808,-151.0,0.00040995,120]
[392261633,1761288640818,-151.0,0.00040995,120]
[392261634,1761288640827,-182.374316,0.00040995,120]
[392261635,1761288640837,-151.0,0.00040995,120]
[392261636,1761288640846,-182.374316,0.00040995,120]
[392261637,1761288640856,-182.374316,0.00040995,120]
[392261638,1761288640866,-151.0,0.00040995,120]
[392261639,1761288640876,-182.374316,0.00040995,120]
[392261640,1761288640885,-151.0,0.00040995,120]
[392261641,1761288640895,-151.0,0.00040995,120]
[392261642,1761288640906,-151.0,0.00040995,120]
[392261643,1761288640916,-385.184431,0.00040995,120]
[392261644,1761288640926,-151.0,0.00040995,120]
[392261645,1761288640936,-305.445953,0.00040995,120]
[392261646,1761288640946,-151.0,0.00040995,120]
[392261647,1761288640956,-385.184431,0.00040995,120]
[392261648,1761288640965,-151.0,0.00040995,120]
[392261649,1761288640974,-151.0,0.00040995,120]
[392261650,1761288640984,-305.445953,0.00040995,120]
[392261651,1761288640995,-305.445953,0.00040995,120]
[392261652,1761288641003,-151.0,0.00040995,120]
[392261653,1761288641013,-151.4934,0.00040995,120]
[392261654,1761288641022,-305.445953,0.00040995,120]
[392261655,1761288641033,-151.0,0.00040995,30]
[392261656,1761288641043,-151.0,0.00040995,30]
[392261657,1761288641055,-1337.74369,0.00040995,120]
[392261658,1761288641065,-1337.74369,0.00040995,120]
[392261659,1761288641075,-1337.74369,0.00040995,120]
[392261660,1761288641085,-1337.74369,0.00040995,120]
[392261661,1761288641095,-7766.922358,0.00040995,120]
[392261662,1761288641106,-291.32004,0.00040995,120]
[392261663,1761288641115,-291.32004,0.00040995,120]
[392261664,1761288641124,-7766.922358,0.00040995,120]
[392261665,1761288641135,-241.286011,0.00040995,120]
[392261666,1761288641145,-291.32004,0.00040995,120]
[392261667,1761288641156,-7766.922358,0.00040995,120]
[392261668,1761288641166,-291.32004,0.00040995,120]
[392261669,1761288641175,-183.572284,0.00040995,120]
[392261670,1761288641185,-7766.922358,0.00040995,120]
[392261671,1761288641194,-151.0,0.00040995,120]
[392261672,1761288641204,-151.0,0.00040995,120]
[392261673,1761288641214,-151.0,0.00040995,120]
[392261674,1761288641223,-151.0,0.00040995,120]
[392261675,1761288641233,-151.0,0.00040995,120]
[392261676,1761288641242,-466.591715,0.00040995,120]
[392261677,1761288641251,-159.223497,0.00040995,120]
[392261678,1761288641261,-151.0,0.00040995,120]
[392261679,1761288641271,-466.591715,0.00040995,120]
[392261680,1761288641281,-151.0,0.00040995,120]
[392261681,1761288641290,-151.0,0.00040995,120]
[392261682,1761288641300,-151.0,0.00040995,120]
[392261683,1761288641310,-720.557569,0.00040995,120]
[392261684,1761288641319,-151.0,0.00040995,120]
[392261685,1761288641328,-466.591715,0.00040995,120]
[392261686,1761288641340,-720.557569,0.00040995,120]
[392261687,1761288641351,-151.0,0.00040995,120]
[392261688,1761288641361,-466.591715,0.00040995,120]
[392261689,1761288641372,-720.557569,0.00040995,120]
[392261690,1761288641382,-154.460102,0.00040995,120]
[392261691,1761288641397,-720.557569,0.00040995,120]
[392261692,1761288641407,-151.0,0.00040995,120]
[392261693,1761288641418,-154.556082,0.00040995,120]
[392261694,1761288641427,-154.071718,0.00040995,120]
[392261695,1761288641438,-151.0,0.00040995,120]
[392261696,1761288641447,-151.0,0.00040995,120]
[392261697,1761288641458,-151.0,0.00040995,120]
[392261698,1761288641468,-151.0,0.00040995,120]
[392261699,1761288641480,-151.0,0.00040995,120]
[392261700,1761288641490,-327.788825,0.00040995,120]
[392261701,1761288641500,-603.310145,0.00040995,120]
[392261702,1761288641510,-327.788825,0.00040995,120]
[392261703,1761288641522,-151.0,0.00040995,120]
[392261704,1761288641531,-151.0,0.00040995,120]
[392261705,1761288641542,-151.0,0.00040995,120]
[392261706,1761288641554,-603.310145,0.00040995,120]
[392261707,1761288641565,-151.0,0.00040995,120]
[392261708,1761288641576,-327.788825,0.00040995,120]
[392261709,1761288641585,-151.0,0.00040995,120]
[392261710,1761288641596,-279.0,0.00040995,5]
[392261711,1761288641606,-603.310145,0.00040995,120]
[392261712,1761288641617,-151.0,0.00040995,120]
[392261713,1761288641626,-327.788825,0.00040995,120]
[392261714,1761288641636,-151.0,0.00040995,120]
[392261715,1761288641646,-603.310145,0.00040995,120]
[392261716,1761288641656,-151.0,0.00040995,120]
[392261717,1761288641665,-151.0,0.00040995,120]
[392261718,1761288641675,-151.0,0.00040995,120]
[392261719,1761288641684,-249.627357,0.00040995,120]
[392261720,1761288641694,-228.086484,0.00040995,120]
[392261721,1761288641705,-249.627357,0.00040995,120]
[392261722,1761288641714,-402.34174,0.00040995,120]
[392261723,1761288641728,-151.0,0.00040995,120]
[392261724,1761288641738,-151.0,0.00040995,120]
[392261725,1761288641747,-402.34174,0.00040995,120]
[392261726,1761288641756,-151.0,0.00040995,120]
[392261727,1761288641766,-151.0,0.00040995,120]
[392261728,1761288641776,-402.34174,0.00040995,120]
[392261729,1761288641786,-151.0,0.00040995,120]
[392261730,1761288641796,-249.627357,0.00040995,120]
[392261731,1761288641806,-151.0,0.00040995,120]
[392261732,1761288641815,-151.0,0.00040995,120]
[392261733,1761288641825,-402.34174,0.00040995,120]
[392261734,1761288641835,-151.0,0.00040995,30]
[392261735,1761288641845,-249.627357,0.00040995,120]
[392261736,1761288641855,-160.101597,0.00040995,30]
[392261737,1761288641864,-154.002616,0.00040995,120]
[392261738,1761288641873,-1109.01647,0.00040995,30]
[392261739,1761288641883,-1109.01647,0.00040995,30]
[392261740,1761288641892,-1109.01647,0.00040995,30]
[392261741,1761288641902,-1109.01647,0.00040995,30]
[392261742,1761288641912,-491.802855,0.00040995,120]
[392261743,1761288641922,-151.0,0.00040995,120]
[392261744,1761288641932,-151.0,0.00040995,14]
[392261745,1761288641942,-491.802855,0.00040995,120]
[392261746,1761288641952,-151.0,0.00040995,14]
[392261747,1761288641962,-491.802855,0.00040995,120]
[392261748,1761288641971,-154.894936,0.00040995,120]
[392261749,1761288641981,-491.802855,0.00040995,120]
[392261750,1761288641991,-153.479678,0.00040995,120]
[392261751,1761288642000,-151.0,0.00040995,60]
[392261752,1761288642009,-151.0,0.00040995,120]
[392261753,1761288642019,-151.0,0.00040995,120]
[392261754,1761288642029,-199.538505,0.00040995,120]
[392261755,1761288642038,-151.0,0.00040995,120]
[392261756,1761288642047,-199.538505,0.00040995,120]
[392261757,1761288642057,-151.0,0.00040995,120]
[392261758,1761288642066,-1016.058301,0.00040995,120]
[392261759,1761288642080,-199.538505,0.00040995,120]
[392261760,1761288642090,-151.0,0.00040995,120]
[392261761,1761288642100,-1016.058301,0.00040995,120]
[392261762,1761288642110,-199.538505,0.00040995,120]
[392261763,1761288642121,-151.0,0.00040995,120]
[392261764,1761288642130,-1016.058301,0.00040995,120]
[392261765,1761288642141,-1016.058301,0.00040995,120]
[392261766,1761288642151,-151.0,0.00040995,120]
[392261767,1761288642160,-151.0,0.00040995,120]
[392261768,1761288642170,-171.094111,0.00040995,120]
[392261769,1761288642180,-151.0,0.00040995,120]
[392261770,1761288642190,-151.0,0.00040995,120]
[392261771,1761288642200,-1433.27525864,0.00040995,120]
[392261772,1761288642210,-260.708385,0.00040995,120]
[392261773,1761288642220,-152.097625,0.00040995,120]
[392261774,1761288642230,-171.094111,0.00040995,120]
[392261775,1761288642239,-151.0,0.00040995,120]
[392261776,1761288642249,-151.0,0.00040995,120]
[392261777,1761288642258,-260.708385,0.00040995,120]
[392261778,1761288642268,-171.094111,0.00040995,120]
[392261779,1761288642278,-151.0,0.00040995,120]
[392261780,1761288642287,-31929.3727,0.00040995,2]
[392261781,1761288642297,-101036.27,0.00040995,2]
[392261782,1761288642306,-1000.0,0.00040995,120]
[392261783,1761288642316,-1000.0,0.00040995,2]
[392261784,1761288642326,-53576.94811457,0.00040995,60]
[392261785,1761288642364,-2826.91681396,0.00040995,60]
[392261859,1761288643880,-260.708385,0.00040995,120]
[392261861,1761288643889,-171.094111,0.00040995,120]
[392261863,1761288643899,-151.0,0.00040995,120]
[392261865,1761288643908,-151.0,0.00040995,120]
[392261867,1761288643917,-260.708385,0.00040995,120]
[392261869,1761288643926,-151.0,0.00040995,120]
[392261871,1761288643936,-381.33186888,0.00040995,60]
[392261872,1761288643948,-62872.57403466,0.00040995,60]
[392261874,1761288645946,-151.0,0.00040995,120]
[392261875,1761288645956,-2263.18665822,0.00040995,60]
[392261876,1761288645969,-783.08809648,0.00040995,60]
[392261877,1761288645981,-360.88497076,0.00040995,60]
[392262175,1761289832652,-250.0,0.00017,2]
[392262177,1761289832661,-300.0,0.00019,2]
[392262179,1761289832671,-452.46,0.00019862,2]
[392262181,1761289832680,-452.46,0.00020907,2]
[392262183,1761289832689,-452.46,0.00021953,2]
[392262185,1761289832699,-452.46,0.00022998,2]
[392262186,1761289832709,-452.46,0.00024043,2]
[392262188,1761289832719,-500.0,0.00024932,2]
[392262191,1761289832728,-33.91404566,0.00025089,2]
[392262194,1761289832755,-418.54595434,0.00025089,2]
[392262196,1761289832765,-452.46,0.00026134,2]
[392262198,1761289832774,-452.46,0.0002718,2]
[392262200,1761289832784,-452.46,0.00028225,2]
[392262202,1761289832793,-452.46,0.0002927,2]
[392262204,1761289832802,-452.46,0.00030316,2]
[392262206,1761289832811,-452.46,0.00031361,2]
[392262208,1761289832821,-452.46,0.00032406,2]
[392262210,1761289832830,-452.46,0.00033452,2]
[392262212,1761289832840,-452.46,0.00034497,2]
[392262214,1761289832850,-219.69555063,0.00035471,2]
[392262216,1761289832861,-452.46,0.00035542,2]
[392262218,1761289832870,-166.66,0.00035548,30]
[392262221,1761289832880,-476.35224409,0.00035751,2]
[392262223,1761289832889,-166.66,0.00036296,30]
[392262224,1761289832899,-452.46,0.00036588,2]
[392262226,1761289832908,-400.0,0.00036588,2]
[392262228,1761289832918,-1000.0,0.00036617,2]
[392262230,1761289832927,-150.0,0.00036677,2]
[392262232,1761289832937,-1114.64384275,0.00036746,120]
[392262246,1761289837929,-150.0,0.00033952,3]
[392262247,1761289837939,-300.0,0.00036192,3]
[392262248,1761289837949,-235.99741406,0.00036746,120]
[392262249,1761289837959,-246.82923867,0.00036746,120]
[392262250,1761289837969,-150.0,0.00036746,120]
[392262251,1761289837978,-150.0,0.00036746,120]
[392262252,1761289837988,-397.60629207,0.00036746,30]
[392262253,1761289837999,-254.18043806,0.00036746,30]
[392262254,1761289838022,-348.21326987,0.00036746,30]
[392262255,1761289838032,-10.12158177,0.00036746,30]
[392262256,1761289838043,-989.87841823,0.00036746,30]
[392262257,1761289838053,-231.38904536,0.00036746,30]
[392262258,1761289838073,-768.61095464,0.00036746,30]
[392262259,1761289838083,-1000.0,0.00036746,30]
[392262261,1761289838092,-1000.0,0.00036746,30]
[392262262,1761289838102,-1000.0,0.00036746,30]
[392262263,1761289838111,-776.17123374,0.00036746,30]
[392262264,1761289838136,-223.82876626,0.00036746,30]
[392262265,1761289838145,-264.83553565,0.00036746,30]
[392262266,1761289838157,-735.16446435,0.00036746,30]
[392262267,1761289838167,-473.63553565,0.00036746,30]
[392262272,1761289840064,-526.36446435,0.00036746,30]
[392262273,1761289840074,-1025.75879904,0.00036746,30]
[392262274,1761289840084,-1697.97572036,0.00036886,2]
[392262275,1761289840236,-31.10427964,0.00036886,2]
[392262276,1761289840246,-168.0,0.00036897,2]
[392262277,1761289840256,-287.44751312,0.00036962,4]
[392262278,1761289840265,-230.19453688,0.00036962,4]
[392262279,1761289840275,-150.0,0.00036962,4]
[392262280,1761289840284,-229.07490955,0.00036962,4]
[392262281,1761289840294,-184.08724656,0.00036962,4]
[392262282,1761289840303,-150.0,0.00036962,4]
[392262283,1761289840312,-249.00000001,0.00036962,4]
[392262284,1761289840321,-150.0,0.00036962,4]
[392262285,1761289840331,-150.0,0.00036962,4]
[392262286,1761289840340,-155.07678216,0.00036962,4]
[392262287,1761289840350,-166.66,0.00037044,30]
[392262288,1761289840359,-206.58,0.00037393,2]
[392262289,1761289840368,-150.0,0.00037442,2]
[392262290,1761289840378,-150.0,0.00037442,120]
[392262291,1761289840387,-19.69154604,0.00037442,48]
[392262292,1761289840411,-314.24645396,0.00037442,48]
[392262293,1761289840420,-452.46,0.00037633,2]
[392262294,1761289840430,-168.0,0.00037713,2]
[392262295,1761289840439,-166.66,0.00037793,30]
[392262296,1761289840448,-166.66,0.00038541,30]
[392262297,1761289840458,-452.46,0.00038679,2]
[392262298,1761289840467,-206.58,0.00038795,2]
[392262299,1761289840476,-560.0,0.00039166,5]
[392262300,1761289840485,-166.66,0.0003929,30]
[392262301,1761289840494,-168.0,0.00039297,2]
[392262302,1761289840504,-318.0,0.00039305,2]
[392262303,1761289840513,-215.53759022,0.00039724,2]
[392262304,1761289840525,-236.92240978,0.00039724,2]
[392262305,1761289840540,-150.0,0.00039762,2]
[392262306,1761289840555,-499.87459441,0.00039853,31]
[392262307,1761289840572,-143.99483896,0.00039853,31]
[392262308,1761289840583,-220.13516104,0.00039853,31]
[392262309,1761289840666,-5.4492205,0.00039853,31]
[392262310,1761289840680,-188.45309013,0.00039853,31]
[392262311,1761289840692,-1950.72936172,0.00039854,2]
[392262312,1761289840711,-2000.0,0.00039854,2]
[392262313,1761289840731,-2250.0,0.00039854,2]
[392262314,1761289840750,-3670.10718,0.00039854,2]
[392262342,1761289843623,-9031.27866453,0.00039854,2]
[392262345,1761289843704,-490.0,0.00039854,2]
[392262348,1761289846049,-4222.928536,0.00039854,2]
[392262349,1761289846150,-104.97625775,0.00039854,2]
[392262350,1761289846159,-200.8612369,0.0004,10]
[392262351,1761289846170,-304.31811457,0.0004,10]
[392262729,1761290429007,391.86,0.00013699,2]
[392262771,1761290525641,277.85959667,0.00013494,2]
[392262819,1761290677801,181.57,0.00027397,120]
[392262826,1761290708393,95112.48213133,0.00015,2]
[392262827,1761290708427,15000.0,0.00015,2]
[392262828,1761290708456,15000.0,0.00015,2]
[392262829,1761290708484,15000.0,0.00015,2]
[392262830,1761290708516,290261.93145605,0.00015,2]
[392262833,1761290746748,5367.53782885,0.0001995,15]
[392262835,1761290862081,-323.01672194,0.00016,2]
[392262836,1761290863599,-181.68675171,0.00016,2]
[392262839,1761290869032,-218.0040444,0.00016,2]
[392262841,1761290875116,1797641.76604704,0.00015,2]
[392262842,1761290892203,255.51611901,0.000135,2]
[392262848,1761290921653,2114.6090372,0.00015,2]
[392262859,1761290949140,-217.5903233,0.00016,2]
[392262860,1761290949165,-186.23560993,0.00017999,2]
[392262861,1761290949187,-268.09250048,0.00017999,2]
[392262864,1761290963604,1149.7387381,0.00015,2]
[392262867,1761290981253,1600.0,0.000165,3]
[392262868,1761290983196,-231.90749952,0.00017999,2]
[392262869,1761290983221,-0.03655534,0.00017999,2]
[392262870,1761290988884,-312.61386641,0.00017999,2]
[392262871,1761290988911,-14.91821998,0.00017999,2]
[392262872,1761290991604,-215.0815976,0.00017999,2]
[392262873,1761290991625,-181.68675171,0.00017999,2]
[392262874,1761290991651,-0.16064694,0.00017999,2]
[392262883,1761291012033,-300.0,0.00017999,2]
[392262884,1761291012062,-57.41725042,0.00017999,2]
[392262885,1761291013520,-160.42614704,0.00017999,2]
[392262886,1761291013547,-65.95737017,0.00017999,2]
[392262889,1761291021487,-165.98668469,0.00017999,2]
[392262890,1761291021515,-52.02383239,0.00017999,2]
[392262892,1761291023029,-260.62045928,0.00017999,2]
[392262946,1761291031913,-84.28470458,0.00017999,2]
[392262947,1761291031943,-199.14589368,0.00018,2]
[392262971,1761291032205,-1612.62788037,0.00018,2]
[392262972,1761291032217,-43203.21350133,0.00018,2]
[392262973,1761291032226,-3331.63432326,0.0002,2]
[392262974,1761291032236,-159.47867009,0.00020087,2]
[392262975,1761291032245,-391.86,0.00020187,2]
[392262976,1761291032255,-500.0,0.00024932,2]
[392262977,1761291032268,-391.86,0.00026676,2]
[392262978,1761291032277,-418.84,0.00029045,2]
[392262979,1761291032287,-170.0,0.00031,120]
[392262980,1761291032296,-636.43682259,0.00033,2]
[392262981,1761291032306,-53811.67037841,0.00033,2]
[392262982,1761291032318,-786.21695819,0.00033,2]
[392262983,1761291032330,-541.95639713,0.00033,2]
[392262984,1761291032358,-544.04430556,0.00033,2]
[392262985,1761291032370,-679.27449454,0.00033,2]
[392262986,1761291032383,-4718.64407292,0.00033,2]
[392263032,1761291037612,-233.57057827,0.00017999,2]
[392263034,1761291038261,-359.93718706,0.00017999,2]
[392263035,1761291038271,-144.84724467,0.00033,2]
[392263041,1761291040204,-150.0,0.00032999,3]
[392263042,1761291040214,-5553.40163502,0.00033,2]
[392263043,1761291040226,-443.63942469,0.00033,2]
[392263044,1761291040344,-1765.82987385,0.00033,2]
[392263045,1761291040355,-3498.45201411,0.00033,2]
[392263069,1761291040715,-1.6e-07,0.00033,2]
[392263071,1761291040727,-735.2070627,0.00033,2]
[392263073,1761291040737,-318.8230133,0.00033,2]
[392263076,1761291040751,-2888.12122372,0.00033,2]
[392263078,1761291040762,-832.35532283,0.00033,2]
[392263080,1761291040773,-17723.77429306,0.00033,2]
[392263082,1761291040783,-391.86,0.00033165,2]
[392263084,1761291040791,-150.0,0.000335,3]
[392263086,1761291040802,-500.0,0.0003386,5]
[392263088,1761291040811,-500.0,0.0003386,5]
[392263090,1761291040820,-506.5786996,0.0003386,5]
[392263092,1761291040829,-504.62794636,0.00034408,5]
[392263094,1761291040838,-202.80124093,0.00034408,5]
[392263096,1761291040847,-3873.79967526,0.00034545,2]
[392263098,1761291040857,-18597.33229984,0.000348,2]
[392263100,1761291040866,-150.0,0.000349,120]
[392263102,1761291040875,-419.2814,0.00034986,10]
[392263104,1761291040885,-1555.71,0.0003499,2]
[392263106,1761291040893,-1555.71,0.0003499,2]
[392263108,1761291040903,-151.0,0.00034997,14]
[392263110,1761291040912,-1000.0,0.00034999,2]
[392263111,1761291040925,-1177.65810365,0.00034999,30]
[392263113,1761291040934,-437.655,0.00034999,40]
[392263115,1761291040944,-500.0,0.00034999,2]
[392263118,1761291040953,-205108.6955379,0.00035,10]
[392263119,1761291040964,-500.0,0.00035,5]
[392263121,1761291040973,-210.58588214,0.00035,2]
[392263123,1761291040982,-191.0,0.00035068,2]
[392263125,1761291040992,-191.0,0.00035314,2]
[392263128,1761291041002,-150.0,0.00035471,2]
[392263129,1761291041011,-445.68982147,0.00035471,2]
[392263131,1761291041021,-18597.33229978,0.00035488,2]
[392263133,1761291041030,-500.0,0.00035547,30]
[392263135,1761291041039,-500.0,0.00035547,2]
[392263137,1761291041048,-466.24016522,0.00035548,5]
[392263140,1761291041058,-191.0,0.00035559,2]
[392263142,1761291041068,-191.0,0.00035805,2]
[392263143,1761291041077,-191.0,0.0003605,2]
[392263146,1761291041086,-18597.33229978,0.00036177,2]
[392263148,1761291041095,-191.0,0.00036296,2]
[392263149,1761291041105,-1124.5,0.00036506,7]
[392263151,1761291041114,-191.0,0.00036541,2]
[392263153,1761291041123,-150.0,0.00036567,7]
[392263154,1761291041131,-150.0,0.00036567,7]
[392263155,1761291041140,-150.0,0.00036567,7]
[392263156,1761291041149,-150.0,0.00036567,7]
[392263157,1761291041157,-150.0,0.00036567,7]
[392263158,1761291041166,-150.0,0.00036567,7]
[392263159,1761291041176,-150.0,0.00036567,7]
[392263160,1761291041185,-150.0,0.00036567,7]
[392263161,1761291041194,-709.85450228,0.00036642,9]
[392263162,1761291041202,-2694.45845538,0.00036642,11]
[392263163,1761291041212,-244.0650838,0.00036709,2]
[392263165,1761291041220,-1555.71,0.00036732,2]
[392263167,1761291041229,-354.4805485,0.00036732,2]
[392263169,1761291041239,-1555.71,0.00036732,2]
[392263171,1761291041248,-1555.71,0.00036732,2]
[392263173,1761291041257,-153.49,0.00036732,2]
[392263175,1761291041266,-151.0,0.00036739,14]
[392263177,1761291041276,-1200.0,0.00036742,5]
[392263179,1761291041284,-500.0,0.00036742,2]
[392263181,1761291041294,-500.0,0.00036742,2]
[392263183,1761291041303,-151.0,0.00036742,30]
[392263185,1761291041312,-151.0,0.00036742,30]
[392263187,1761291041321,-151.0,0.00036742,30]
[392263189,1761291041331,-151.0,0.00036742,30]
[392263191,1761291041340,-151.0,0.00036742,30]
[392263193,1761291041349,-151.0,0.00036742,30]
[392263195,1761291041358,-151.0,0.00036742,30]
[392263197,1761291041367,-151.0,0.00036742,30]
[392263199,1761291041377,-151.0,0.00036742,30]
[392263201,1761291041386,-151.0,0.00036742,30]
[392263203,1761291041395,-151.0,0.00036742,30]
[392263205,1761291041403,-151.0,0.00036742,30]
[392263207,1761291041412,-151.0,0.00036742,30]
[392263209,1761291041422,-151.0,0.00036742,30]
[392263211,1761291041430,-151.0,0.00036742,30]
[392263213,1761291041439,-151.0,0.00036742,30]
[392263215,1761291041448,-151.0,0.00036742,30]
[392263217,1761291041457,-151.0,0.00036742,30]
[392263219,1761291041467,-151.0,0.00036742,30]
[392263221,1761291041476,-213.865681,0.00036742,30]
[392263223,1761291041485,-243.493701,0.00036742,30]
[392263225,1761291041494,-151.0,0.00036742,30]
[392263227,1761291041503,-151.0,0.00036742,30]
[392263229,1761291041512,-151.0,0.00036742,30]
[392263231,1761291041521,-151.0,0.00036742,30]
[392263233,1761291041530,-211.847088,0.00036742,30]
[392263235,1761291041539,-151.0,0.00036742,30]
[392263237,1761291041548,-151.0,0.00036742,30]
[392263238,1761291041557,-151.0,0.00036742,30]
[392263241,1761291041567,-153.066289,0.00036742,30]
[392263243,1761291041576,-151.0,0.00036742,30]
[392263245,1761291041586,-151.0,0.00036742,30]
[392263247,1761291041595,-151.0,0.00036742,30]
[392263249,1761291041604,-151.0,0.00036742,30]
[392263250,1761291041613,-241.623404,0.00036742,30]
[392263253,1761291041622,-151.0,0.00036742,30]
[392263254,1761291041631,-151.0,0.00036742,30]
[392263256,1761291041641,-151.0,0.00036742,30]
[392263259,1761291041650,-153.321221,0.00036742,30]
[392263260,1761291041660,-151.0,0.00036742,30]